[Event "Betsys MČR v online bleskovém šachu 2021"]
[Site "Chess.com"]
[Date "2021.04.17"]
[Round "1"]
[White "HonzaVykouk"]
[Black "FMD-MP"]
[Result "1-0"]
[WhiteElo "2700"]
[BlackElo "1806"]
[TimeControl "180+1"]
[EndTime "9:08:03 PDT"]
[Termination "Uživatel HonzaVykouk zvítězil na čas"]

1. e4 {[%clk 0:02:59.7]} 1... c5 {[%clk 0:02:56.7]} 2. Nf3 {[%clk 0:02:59.6]}
2... Nc6 {[%clk 0:02:51.6]} 3. d4 {[%clk 0:02:59.2]} 3... cxd4 {[%clk 0:02:51]}
4. Nxd4 {[%clk 0:03:00.1]} 4... Nf6 {[%clk 0:02:50.9]} 5. Nc3 {[%clk 0:03:00.1]}
5... e5 {[%clk 0:02:50.8]} 6. Ndb5 {[%clk 0:03:00.3]} 6... d6 {[%clk 0:02:51.2]}
7. Bg5 {[%clk 0:02:59.3]} 7... a6 {[%clk 0:02:50.9]} 8. Na3 {[%clk 0:03:00]}
8... b5 {[%clk 0:02:51.1]} 9. Nd5 {[%clk 0:03:00.8]} 9... Qa5+ {[%clk
0:02:48.9]} 10. Bd2 {[%clk 0:02:17.2]} 10... Qd8 {[%clk 0:02:48.1]} 11. Bg5
{[%clk 0:02:01.1]} 11... Qa5+ {[%clk 0:02:47.2]} 12. c3 {[%clk 0:02:01.5]} 12...
Nxe4 {[%clk 0:02:43.1]} 13. Qf3 {[%clk 0:01:31.5]} 13... Nxg5 {[%clk 0:02:10]}
14. Nf6+ {[%clk 0:01:31.2]} 14... gxf6 {[%clk 0:02:09.4]} 15. Qxc6+ {[%clk
0:01:30.9]} 15... Kd8 {[%clk 0:02:04.9]} 16. Qxa8 {[%clk 0:01:31.8]} 16... Qb6
{[%clk 0:01:38.7]} 17. O-O-O {[%clk 0:01:10]} 17... Kc7 {[%clk 0:01:34.4]} 18.
h4 {[%clk 0:00:19.8]} 18... Bh6 {[%clk 0:01:06.1]} 19. Qd5 {[%clk 0:00:19.2]}
19... Be6 {[%clk 0:00:30.6]} 20. Qd3 {[%clk 0:00:18.9]} 20... Nh3+ {[%clk
0:00:22.2]} 21. Kb1 {[%clk 0:00:16.4]} 21... Nxf2 {[%clk 0:00:22.1]} 22. Qf3
{[%clk 0:00:13.1]} 22... Nxh1 {[%clk 0:00:16.9]} 23. Qxf6 {[%clk 0:00:11.7]}
23... Bf8 {[%clk 0:00:11.6]} 24. Qxh8 {[%clk 0:00:06.3]} 24... Be7 {[%clk
0:00:11.8]} 25. Qxh7 {[%clk 0:00:05.7]} 25... Nf2 {[%clk 0:00:10.7]} 26. Rc1
{[%clk 0:00:02.8]} 26... Qe3 {[%clk 0:00:10.7]} 27. Qc2 {[%clk 0:00:01.5]} 27...
Ne4 {[%clk 0:00:10.5]} 28. Ka1 {[%clk 0:00:01.9]} 28... Bf5 {[%clk 0:00:06.9]}
29. Bd3 {[%clk 0:00:02.8]} 29... Ng3 {[%clk 0:00:05.7]} 30. Bxf5 {[%clk
0:00:03.2]} 30... Nxf5 {[%clk 0:00:03.5]} 31. c4 {[%clk 0:00:04.1]} 31... Nd4
{[%clk 0:00:02.9]} 32. Qc3 {[%clk 0:00:04]} 1-0

[Event "Betsys MČR v online bleskovém šachu 2021"]
[Site "Chess.com"]
[Date "2021.04.17"]
[Round "1"]
[White "mravecuk"]
[Black "FrantisekP"]
[Result "1-0"]
[WhiteElo "2274"]
[BlackElo "1640"]
[TimeControl "180+1"]
[EndTime "9:08:03 PDT"]
[Termination "Uživatel mravecuk zvítězil po vzdání soupeře"]

1. d4 {[%clk 0:02:52.2]} 1... Nf6 {[%clk 0:02:59.2]} 2. Nc3 {[%clk 0:02:47.8]}
2... g6 {[%clk 0:02:59.4]} 3. e4 {[%clk 0:02:45.5]} 3... Bg7 {[%clk 0:02:59.9]}
4. e5 {[%clk 0:02:43.7]} 4... Ng8 {[%clk 0:02:51.8]} 5. Be3 {[%clk 0:02:42.6]}
5... d6 {[%clk 0:02:51.8]} 6. exd6 {[%clk 0:02:41.3]} 6... cxd6 {[%clk
0:02:47.3]} 7. Qd2 {[%clk 0:02:38.9]} 7... Nf6 {[%clk 0:02:44.8]} 8. h3 {[%clk
0:02:35.2]} 8... Nc6 {[%clk 0:02:37.9]} 9. Nf3 {[%clk 0:02:34.9]} 9... O-O
{[%clk 0:02:38.1]} 10. Be2 {[%clk 0:02:33]} 10... a6 {[%clk 0:02:38.3]} 11. O-O
{[%clk 0:02:31.9]} 11... Bd7 {[%clk 0:02:33]} 12. Rfe1 {[%clk 0:02:30.5]} 12...
Rc8 {[%clk 0:02:31.1]} 13. Rad1 {[%clk 0:02:30.5]} 13... e6 {[%clk 0:02:27.6]}
14. Bh6 {[%clk 0:02:25.8]} 14... b5 {[%clk 0:02:15.3]} 15. Bxg7 {[%clk
0:02:24.6]} 15... Kxg7 {[%clk 0:02:16.2]} 16. Qf4 {[%clk 0:02:15.3]} 16... Nh5
{[%clk 0:02:09]} 17. Qxd6 {[%clk 0:02:12]} 17... Re8 {[%clk 0:01:49.5]} 18. Ne4
{[%clk 0:02:00.7]} 18... Ne7 {[%clk 0:01:34.9]} 19. c3 {[%clk 0:01:53.1]} 19...
Nd5 {[%clk 0:01:32.8]} 20. Ne5 {[%clk 0:01:41.2]} 20... Qe7 {[%clk 0:01:23.7]}
21. Bxh5 {[%clk 0:01:34.5]} 21... Qxd6 {[%clk 0:01:08]} 22. Nxd6 {[%clk
0:01:34]} 22... gxh5 {[%clk 0:01:07.1]} 23. Nxc8 {[%clk 0:01:23.8]} 23... Bxc8
{[%clk 0:01:06.2]} 24. g3 {[%clk 0:01:13.4]} 24... Bb7 {[%clk 0:01:02.7]} 25. h4
{[%clk 0:01:12.9]} 25... Rg8 {[%clk 0:00:55.4]} 26. Nd3 {[%clk 0:01:10.6]} 26...
Nf6 {[%clk 0:00:49.6]} 27. Nc5 {[%clk 0:01:05.7]} 27... Bc6 {[%clk 0:00:48.5]}
28. Re5 {[%clk 0:01:02.4]} 28... Kh6 {[%clk 0:00:48]} 29. a3 {[%clk 0:01:00.6]}
29... Ng4 {[%clk 0:00:46.4]} 30. Ree1 {[%clk 0:00:52.7]} 30... Bf3 {[%clk
0:00:43.7]} 31. Rd2 {[%clk 0:00:52.2]} 31... Bd5 {[%clk 0:00:43.4]} 32. Nxa6
{[%clk 0:00:50.8]} 32... f5 {[%clk 0:00:31.1]} 33. Nc7 {[%clk 0:00:48.9]} 33...
f4 {[%clk 0:00:20.5]} 34. Nxd5 {[%clk 0:00:47.6]} 34... exd5 {[%clk 0:00:21.4]}
35. Re6+ {[%clk 0:00:46.5]} 35... Kg7 {[%clk 0:00:21.7]} 36. Rde2 {[%clk
0:00:37.4]} 36... Kf7 {[%clk 0:00:20.5]} 37. Re7+ {[%clk 0:00:36.7]} 37... Kf6
{[%clk 0:00:21.1]} 38. R2e6+ {[%clk 0:00:23.9]} 38... Kf5 {[%clk 0:00:20.9]} 39.
Rd6 {[%clk 0:00:20.2]} 39... fxg3 {[%clk 0:00:18.2]} 40. fxg3 {[%clk 0:00:20.2]}
40... Nf6 {[%clk 0:00:16.2]} 41. Rf7 {[%clk 0:00:19.6]} 41... Rxg3+ {[%clk
0:00:14.6]} 42. Kf2 {[%clk 0:00:19.6]} 42... Rg6 {[%clk 0:00:14.2]} 43. Rfxf6+
{[%clk 0:00:18.3]} 43... Rxf6 {[%clk 0:00:13.5]} 44. Rxf6+ {[%clk 0:00:18.4]}
44... Kxf6 {[%clk 0:00:14]} 45. Kf3 {[%clk 0:00:18.3]} 1-0

[Event "Betsys MČR v online bleskovém šachu 2021"]
[Site "Chess.com"]
[Date "2021.04.17"]
[Round "1"]
[White "Mikkes33"]
[Black "kaprasov"]
[Result "0-1"]
[WhiteElo "936"]
[BlackElo "1893"]
[TimeControl "180+1"]
[EndTime "9:08:04 PDT"]
[Termination "Uživatel kaprasov zvítězil na čas"]

1. e4 {[%clk 0:02:58.1]} 1... c5 {[%clk 0:02:57.4]} 2. Nf3 {[%clk 0:02:57.5]}
2... d6 {[%clk 0:02:57.4]} 3. d4 {[%clk 0:02:56.6]} 3... cxd4 {[%clk 0:02:57.6]}
4. Nxd4 {[%clk 0:02:53.8]} 4... Nf6 {[%clk 0:02:57.9]} 5. Nc3 {[%clk 0:02:52.9]}
5... g6 {[%clk 0:02:58]} 6. f3 {[%clk 0:02:39.4]} 6... Bg7 {[%clk 0:02:57.7]} 7.
Be3 {[%clk 0:02:38.4]} 7... O-O {[%clk 0:02:57.2]} 8. Qd2 {[%clk 0:02:37.9]}
8... Nc6 {[%clk 0:02:57.4]} 9. h4 {[%clk 0:02:34.4]} 9... h5 {[%clk 0:02:26.8]}
10. O-O-O {[%clk 0:02:32.3]} 10... Nxd4 {[%clk 0:02:26.4]} 11. Bxd4 {[%clk
0:02:30.5]} 11... Be6 {[%clk 0:02:26.9]} 12. g4 {[%clk 0:02:12.4]} 12... Qa5
{[%clk 0:02:12.3]} 13. Kb1 {[%clk 0:01:53.8]} 13... Rfc8 {[%clk 0:02:08]} 14. b3
{[%clk 0:01:26.5]} 14... Rab8 {[%clk 0:01:35.4]} 15. gxh5 {[%clk 0:01:11]} 15...
Nxh5 {[%clk 0:01:23.7]} 16. Bxg7 {[%clk 0:01:06.2]} 16... Nxg7 {[%clk
0:01:15.8]} 17. Nd5 {[%clk 0:00:51.2]} 17... Qxd2 {[%clk 0:01:06.4]} 18. Rxd2
{[%clk 0:00:49]} 18... Bxd5 {[%clk 0:01:06.2]} 19. exd5 {[%clk 0:00:30.6]} 19...
Rc3 {[%clk 0:00:58.5]} 20. Bd3 {[%clk 0:00:21.4]} 20... Rbc8 {[%clk 0:00:53.4]}
21. Re2 {[%clk 0:00:19.3]} 21... Kf8 {[%clk 0:00:52.4]} 22. Rhe1 {[%clk
0:00:18.1]} 22... R8c7 {[%clk 0:00:49.9]} 23. f4 {[%clk 0:00:16]} 23... Nh5
{[%clk 0:00:47.9]} 24. Rf2 {[%clk 0:00:08.6]} 24... Nf6 {[%clk 0:00:38.6]} 25.
f5 {[%clk 0:00:08.5]} 25... gxf5 {[%clk 0:00:30.4]} 26. Rxf5 {[%clk 0:00:08.1]}
26... R3c5 {[%clk 0:00:26.9]} 27. c4 {[%clk 0:00:05.3]} 27... b5 {[%clk
0:00:26.2]} 28. h5 {[%clk 0:00:03.9]} 28... bxc4 {[%clk 0:00:24.3]} 29. bxc4
{[%clk 0:00:03.3]} 29... Rb7+ {[%clk 0:00:24]} 30. Ka1 {[%clk 0:00:02.6]} 30...
Rb8 {[%clk 0:00:05.2]} 31. Rg5 {[%clk 0:00:02]} 31... Rcc8 {[%clk 0:00:03]} 32.
h6 {[%clk 0:00:01.1]} 32... Nh7 {[%clk 0:00:02.1]} 0-1

[Event "Betsys MČR v online bleskovém šachu 2021"]
[Site "Chess.com"]
[Date "2021.04.17"]
[Round "1"]
[White "Patriktesko"]
[Black "valid88"]
[Result "1-0"]
[WhiteElo "2071"]
[BlackElo "1342"]
[TimeControl "180+1"]
[EndTime "9:08:06 PDT"]
[Termination "Uživatel Patriktesko zvítězil na čas"]

1. d4 {[%clk 0:02:54.1]} 1... d5 {[%clk 0:02:58.5]} 2. Nf3 {[%clk 0:02:53.9]}
2... Nf6 {[%clk 0:02:56.6]} 3. Bg5 {[%clk 0:02:54.2]} 3... Bf5 {[%clk 0:02:52]}
4. c3 {[%clk 0:02:49.9]} 4... e6 {[%clk 0:02:48.5]} 5. e3 {[%clk 0:02:49.5]}
5... c5 {[%clk 0:02:36.4]} 6. Bd3 {[%clk 0:02:46.3]} 6... Bg4 {[%clk 0:02:19.3]}
7. Nbd2 {[%clk 0:02:40.7]} 7... Nc6 {[%clk 0:02:15.2]} 8. Qc2 {[%clk 0:02:32.4]}
8... h6 {[%clk 0:02:03.5]} 9. Bh4 {[%clk 0:02:30.6]} 9... Be7 {[%clk 0:01:56.8]}
10. a3 {[%clk 0:02:25.6]} 10... cxd4 {[%clk 0:01:53.4]} 11. exd4 {[%clk
0:02:10]} 11... a6 {[%clk 0:01:52.6]} 12. O-O {[%clk 0:02:04.8]} 12... O-O
{[%clk 0:01:50.9]} 13. Bg3 {[%clk 0:02:04.5]} 13... Bd6 {[%clk 0:01:45.6]} 14.
Rae1 {[%clk 0:02:03.1]} 14... b5 {[%clk 0:01:41]} 15. Ne5 {[%clk 0:01:54.4]}
15... Bxe5 {[%clk 0:01:01.4]} 16. Bxe5 {[%clk 0:01:55.3]} 16... Nxe5 {[%clk
0:01:00.1]} 17. Rxe5 {[%clk 0:01:55.5]} 17... Bh5 {[%clk 0:00:49.6]} 18. f3
{[%clk 0:01:41.6]} 18... Qb6 {[%clk 0:00:44]} 19. Kh1 {[%clk 0:01:32.3]} 19...
a5 {[%clk 0:00:38.3]} 20. g4 {[%clk 0:01:25.6]} 20... Bg6 {[%clk 0:00:38]} 21.
Bxg6 {[%clk 0:01:24.9]} 21... fxg6 {[%clk 0:00:38.4]} 22. Qxg6 {[%clk
0:01:24.2]} 22... b4 {[%clk 0:00:36.4]} 23. g5 {[%clk 0:01:21.1]} 23... hxg5
{[%clk 0:00:36.4]} 24. Rxg5 {[%clk 0:01:20.4]} 24... Qb7 {[%clk 0:00:32.1]} 25.
axb4 {[%clk 0:01:13.5]} 25... axb4 {[%clk 0:00:31.9]} 26. Rfg1 {[%clk
0:01:13.7]} 26... Rf7 {[%clk 0:00:26.5]} 27. h4 {[%clk 0:01:03]} 27... bxc3
{[%clk 0:00:26.3]} 28. bxc3 {[%clk 0:01:02.8]} 28... Ra2 {[%clk 0:00:25.2]} 29.
Nf1 {[%clk 0:00:58.2]} 29... Ra7 {[%clk 0:00:20]} 30. h5 {[%clk 0:00:57.1]}
30... Kf8 {[%clk 0:00:18.7]} 31. h6 {[%clk 0:00:53.7]} 31... gxh6 {[%clk
0:00:18.7]} 32. Qxh6+ {[%clk 0:00:53.2]} 32... Ke7 {[%clk 0:00:19]} 33. Rg7
{[%clk 0:00:50.8]} 33... Kd6 {[%clk 0:00:12.9]} 34. Rxf7 {[%clk 0:00:35.1]}
34... Qxf7 {[%clk 0:00:12.4]} 35. Qf4+ {[%clk 0:00:33.4]} 35... Kc6 {[%clk
0:00:11.1]} 36. Rg2 {[%clk 0:00:26.7]} 36... Qh5+ {[%clk 0:00:08.8]} 37. Rh2
{[%clk 0:00:24]} 37... Qf7 {[%clk 0:00:06.7]} 38. Rh6 {[%clk 0:00:21.2]} 38...
Ng8 {[%clk 0:00:02.9]} 39. Qxf7 {[%clk 0:00:18.7]} 39... Rxf7 {[%clk 0:00:02.2]}
40. Rxe6+ {[%clk 0:00:18.6]} 40... Kd7 {[%clk 0:00:02.8]} 41. Re3 {[%clk
0:00:19.1]} 41... Rf4 {[%clk 0:00:01.9]} 42. Kg2 {[%clk 0:00:19]} 1-0

[Event "Betsys MČR v online bleskovém šachu 2021"]
[Site "Chess.com"]
[Date "2021.04.17"]
[Round "1"]
[White "adambelaska"]
[Black "Krtecci"]
[Result "0-1"]
[WhiteElo "1439"]
[BlackElo "2106"]
[TimeControl "180+1"]
[EndTime "9:08:07 PDT"]
[Termination "Uživatel Krtecci zvítězil na čas"]

1. d4 {[%clk 0:02:50.2]} 1... Nf6 {[%clk 0:02:58.5]} 2. c4 {[%clk 0:02:48.7]}
2... e6 {[%clk 0:02:58.8]} 3. Nf3 {[%clk 0:02:43.2]} 3... b6 {[%clk 0:02:57.9]}
4. Nc3 {[%clk 0:02:41.1]} 4... Bb7 {[%clk 0:02:55.5]} 5. e3 {[%clk 0:02:23.3]}
5... Bb4 {[%clk 0:02:54.4]} 6. a3 {[%clk 0:02:18.6]} 6... Bxc3+ {[%clk 0:02:54]}
7. bxc3 {[%clk 0:02:11.5]} 7... d6 {[%clk 0:02:53.3]} 8. Qa4+ {[%clk 0:01:48.7]}
8... Nbd7 {[%clk 0:02:50.7]} 9. Rb1 {[%clk 0:01:42.2]} 9... O-O {[%clk 0:02:50]}
10. Bd3 {[%clk 0:01:34.7]} 10... Ne4 {[%clk 0:02:46.7]} 11. Qc2 {[%clk
0:01:22.9]} 11... f5 {[%clk 0:02:44.7]} 12. Nd2 {[%clk 0:01:11.4]} 12... Ndf6
{[%clk 0:02:34.7]} 13. O-O {[%clk 0:01:08.1]} 13... Kh8 {[%clk 0:02:29.4]} 14.
f3 {[%clk 0:01:05]} 14... Nxd2 {[%clk 0:02:21.2]} 15. Bxd2 {[%clk 0:01:03.3]}
15... Nh5 {[%clk 0:02:08.9]} 16. e4 {[%clk 0:00:55.8]} 16... f4 {[%clk
0:02:09.2]} 17. d5 {[%clk 0:00:51.2]} 17... e5 {[%clk 0:02:07.1]} 18. a4 {[%clk
0:00:34.2]} 18... a5 {[%clk 0:02:03.5]} 19. Be1 {[%clk 0:00:28.8]} 19... Rg8
{[%clk 0:01:51.6]} 20. Qf2 {[%clk 0:00:27.1]} 20... g5 {[%clk 0:01:43.2]} 21. g3
{[%clk 0:00:24.7]} 21... Bc8 {[%clk 0:01:29.4]} 22. g4 {[%clk 0:00:21.9]} 22...
Nf6 {[%clk 0:01:29.3]} 23. h3 {[%clk 0:00:16.4]} 23... Nd7 {[%clk 0:01:27.1]}
24. Qg2 {[%clk 0:00:15.2]} 24... Nc5 {[%clk 0:01:27]} 25. Bc2 {[%clk 0:00:14.2]}
25... Bd7 {[%clk 0:01:26]} 26. Rf2 {[%clk 0:00:13.6]} 26... Bxa4 {[%clk
0:01:22.6]} 27. Bxa4 {[%clk 0:00:13]} 27... Nxa4 {[%clk 0:01:22.3]} 28. Ra1
{[%clk 0:00:12.2]} 28... Qd7 {[%clk 0:01:18.7]} 29. Rc2 {[%clk 0:00:10.1]} 29...
Nc5 {[%clk 0:01:17.8]} 30. Qh2 {[%clk 0:00:09.3]} 30... Rgb8 {[%clk 0:01:14.8]}
31. h4 {[%clk 0:00:08.8]} 31... Qe7 {[%clk 0:00:57.4]} 32. h5 {[%clk 0:00:08.3]}
32... h6 {[%clk 0:00:56.8]} 33. Rca2 {[%clk 0:00:06.6]} 33... Kg7 {[%clk
0:00:56.5]} 34. Bd2 {[%clk 0:00:04.6]} 34... a4 {[%clk 0:00:56.4]} 35. Bc1
{[%clk 0:00:04.4]} 35... Nb3 {[%clk 0:00:32.7]} 36. Rb1 {[%clk 0:00:01.5]} 36...
Nxc1 {[%clk 0:00:30.9]} 37. Rxc1 {[%clk 0:00:02.4]} 37... Ra5 {[%clk 0:00:25.2]}
38. Rca1 {[%clk 0:00:02.8]} 38... Qd7 {[%clk 0:00:24.6]} 39. Kf2 {[%clk
0:00:01.2]} 39... Rba8 {[%clk 0:00:23.6]} 40. Ke2 {[%clk 0:00:01.4]} 40... b5
{[%clk 0:00:18.7]} 0-1

[Event "Betsys MČR v online bleskovém šachu 2021"]
[Site "Chess.com"]
[Date "2021.04.17"]
[Round "1"]
[White "elftom"]
[Black "Molefancier"]
[Result "1-0"]
[WhiteElo "1933"]
[BlackElo "1072"]
[TimeControl "180+1"]
[EndTime "9:08:11 PDT"]
[Termination "Uživatel elftom zvítězil na čas"]

1. c4 {[%clk 0:02:59]} 1... e5 {[%clk 0:02:56.1]} 2. Nc3 {[%clk 0:02:55.8]} 2...
Nf6 {[%clk 0:02:53.4]} 3. g3 {[%clk 0:02:55]} 3... Nc6 {[%clk 0:02:50.9]} 4. Bg2
{[%clk 0:02:50.8]} 4... Bb4 {[%clk 0:02:48.8]} 5. e4 {[%clk 0:02:45.1]} 5... O-O
{[%clk 0:02:41.1]} 6. Nge2 {[%clk 0:02:43.7]} 6... d6 {[%clk 0:02:34.3]} 7. O-O
{[%clk 0:02:42.2]} 7... Bg4 {[%clk 0:02:32.9]} 8. f3 {[%clk 0:02:41.3]} 8... Be6
{[%clk 0:02:25.4]} 9. Nd5 {[%clk 0:02:33.1]} 9... Ba5 {[%clk 0:02:13.5]} 10. d4
{[%clk 0:02:29.3]} 10... Ne7 {[%clk 0:01:59.7]} 11. Nxf6+ {[%clk 0:02:25]} 11...
gxf6 {[%clk 0:01:59]} 12. Be3 {[%clk 0:02:19.6]} 12... Ng6 {[%clk 0:01:54.2]}
13. d5 {[%clk 0:02:15.6]} 13... Bd7 {[%clk 0:01:48.2]} 14. h4 {[%clk 0:01:58]}
14... Kg7 {[%clk 0:01:42.1]} 15. h5 {[%clk 0:01:47.1]} 15... Nh8 {[%clk
0:01:35.3]} 16. g4 {[%clk 0:01:44]} 16... h6 {[%clk 0:01:29]} 17. Kh2 {[%clk
0:01:41.6]} 17... Kh7 {[%clk 0:01:26.5]} 18. Qc1 {[%clk 0:01:32.9]} 18... Rg8
{[%clk 0:01:21.3]} 19. Bxh6 {[%clk 0:01:30.8]} 19... f5 {[%clk 0:01:20.9]} 20.
exf5 {[%clk 0:01:01.7]} 20... Qh4+ {[%clk 0:01:17.9]} 21. Bh3 {[%clk 0:01:02.1]}
21... Bb6 {[%clk 0:01:07.2]} 22. Be3 {[%clk 0:01:00.8]} 22... f6 {[%clk
0:00:56.6]} 23. Bxb6 {[%clk 0:00:59.2]} 23... axb6 {[%clk 0:00:57]} 24. Qe1
{[%clk 0:00:58.6]} 24... Qg5 {[%clk 0:00:54.6]} 25. a3 {[%clk 0:00:53.9]} 25...
Ra4 {[%clk 0:00:51.2]} 26. b3 {[%clk 0:00:51.8]} 26... Raa8 {[%clk 0:00:48.1]}
27. Ng3 {[%clk 0:00:46.2]} 27... Nf7 {[%clk 0:00:45.7]} 28. Ne4 {[%clk
0:00:44.8]} 28... Qf4+ {[%clk 0:00:42.4]} 29. Qg3 {[%clk 0:00:44.2]} 29... Qe3
{[%clk 0:00:35.7]} 30. Nxf6+ {[%clk 0:00:43.5]} 30... Kh6 {[%clk 0:00:27.7]} 31.
Nxd7 {[%clk 0:00:37.5]} 31... Qd2+ {[%clk 0:00:24.1]} 32. Rf2 {[%clk 0:00:36.7]}
32... Qe3 {[%clk 0:00:20.4]} 33. f4 {[%clk 0:00:31.2]} 33... Qe4 {[%clk
0:00:16.3]} 34. g5+ {[%clk 0:00:29.8]} 34... Nxg5 {[%clk 0:00:09.9]} 35. fxg5+
{[%clk 0:00:29.7]} 35... Rxg5 {[%clk 0:00:08.3]} 36. Qf3 {[%clk 0:00:29.3]}
36... Qh4 {[%clk 0:00:07.1]} 37. Rg1 {[%clk 0:00:27.2]} 37... Rag8 {[%clk
0:00:06.1]} 38. Rxg5 {[%clk 0:00:25.6]} 38... Rxg5 {[%clk 0:00:05]} 39. Rg2
{[%clk 0:00:25]} 39... Qf4+ {[%clk 0:00:03.5]} 40. Qxf4 {[%clk 0:00:24.5]} 40...
exf4 {[%clk 0:00:02.7]} 41. Rxg5 {[%clk 0:00:24.3]} 41... Kxg5 {[%clk
0:00:02.8]} 42. f6 {[%clk 0:00:24.6]} 1-0

[Event "Betsys MČR v online bleskovém šachu 2021"]
[Site "Chess.com"]
[Date "2021.04.17"]
[Round "1"]
[White "DenisaD2008"]
[Black "JIDEMONI"]
[Result "0-1"]
[WhiteElo "981"]
[BlackElo "1902"]
[TimeControl "180+1"]
[EndTime "9:08:11 PDT"]
[Termination "Uživatel JIDEMONI zvítězil na čas"]

1. e4 {[%clk 0:02:58.7]} 1... e6 {[%clk 0:02:58.8]} 2. Nc3 {[%clk 0:02:57.2]}
2... d5 {[%clk 0:02:55.9]} 3. d4 {[%clk 0:02:57.6]} 3... Nf6 {[%clk 0:02:54.1]}
4. Bd3 {[%clk 0:02:54.1]} 4... dxe4 {[%clk 0:02:47]} 5. Bxe4 {[%clk 0:02:44.9]}
5... Nxe4 {[%clk 0:02:44.3]} 6. Nxe4 {[%clk 0:02:44.4]} 6... Be7 {[%clk
0:02:36]} 7. Be3 {[%clk 0:02:42.1]} 7... O-O {[%clk 0:02:33.3]} 8. Nf3 {[%clk
0:02:40]} 8... b6 {[%clk 0:02:33.5]} 9. O-O {[%clk 0:02:38.3]} 9... Bb7 {[%clk
0:02:33.6]} 10. Nc3 {[%clk 0:02:28.7]} 10... Nd7 {[%clk 0:02:29.8]} 11. d5
{[%clk 0:02:26.7]} 11... exd5 {[%clk 0:02:26]} 12. Nxd5 {[%clk 0:02:25.3]} 12...
Bd6 {[%clk 0:02:21.9]} 13. Qd3 {[%clk 0:02:15]} 13... Nf6 {[%clk 0:02:14.4]} 14.
Nxf6+ {[%clk 0:02:12.5]} 14... Qxf6 {[%clk 0:02:12.9]} 15. Rad1 {[%clk
0:02:10.1]} 15... Rad8 {[%clk 0:02:11.3]} 16. Bg5 {[%clk 0:02:00.6]} 16... Qg6
{[%clk 0:01:45.2]} 17. Bxd8 {[%clk 0:01:55.3]} 17... Qxd3 {[%clk 0:01:30.6]} 18.
Rxd3 {[%clk 0:01:53.4]} 18... Rxd8 {[%clk 0:01:30.2]} 19. Re1 {[%clk 0:01:48.9]}
19... Kf8 {[%clk 0:01:17.7]} 20. Ng5 {[%clk 0:01:41.6]} 20... h6 {[%clk
0:01:13.7]} 21. Ne4 {[%clk 0:01:34.3]} 21... Re8 {[%clk 0:01:02.3]} 22. Red1
{[%clk 0:01:23.3]} 22... Bxe4 {[%clk 0:00:59.8]} 23. R3d2 {[%clk 0:01:14.4]}
23... Bg6 {[%clk 0:00:57.1]} 24. h4 {[%clk 0:01:06.6]} 24... a5 {[%clk
0:00:56.7]} 25. a4 {[%clk 0:01:04.1]} 25... Bh5 {[%clk 0:00:56.1]} 26. f3 {[%clk
0:00:55.4]} 26... Bf4 {[%clk 0:00:49]} 27. Rd7 {[%clk 0:00:48.3]} 27... Bd6
{[%clk 0:00:45.6]} 28. g4 {[%clk 0:00:40.8]} 28... Bg6 {[%clk 0:00:44.4]} 29.
Rd2 {[%clk 0:00:35.5]} 29... Re1+ {[%clk 0:00:42.7]} 30. Kf2 {[%clk 0:00:34.7]}
30... Re6 {[%clk 0:00:38.6]} 31. h5 {[%clk 0:00:32.1]} 31... Bh7 {[%clk
0:00:37.4]} 32. Rd8+ {[%clk 0:00:26.1]} 32... Re8 {[%clk 0:00:35.6]} 33. Rd7
{[%clk 0:00:22.5]} 33... Rc8 {[%clk 0:00:32.4]} 34. f4 {[%clk 0:00:19.6]} 34...
Ke8 {[%clk 0:00:32.3]} 35. f5 {[%clk 0:00:15.9]} 35... Kxd7 {[%clk 0:00:32.1]}
36. Kf3 {[%clk 0:00:14.8]} 36... Re8 {[%clk 0:00:32.1]} 37. Rd3 {[%clk
0:00:11.7]} 37... f6 {[%clk 0:00:32.1]} 38. Rd2 {[%clk 0:00:09.9]} 38... Bg8
{[%clk 0:00:32.2]} 39. c3 {[%clk 0:00:09.3]} 39... Kc6 {[%clk 0:00:32.2]} 40. b4
{[%clk 0:00:08.5]} 40... Bd5+ {[%clk 0:00:31.8]} 41. Kf2 {[%clk 0:00:05.5]}
41... axb4 {[%clk 0:00:32]} 42. cxb4 {[%clk 0:00:04.4]} 42... Bxb4 {[%clk
0:00:31.8]} 43. Rc2+ {[%clk 0:00:04.2]} 43... Kd6 {[%clk 0:00:29.9]} 44. Rb2
{[%clk 0:00:02.3]} 44... Bc3 {[%clk 0:00:28]} 0-1